Workbook

Sheet E1000699-v1
B2: CALIFORNIA INSTITUTE OF TECHNOLOGY
B6: FORMAL DRAWING TREE & BILL OF MATERIALS REFERENCE DOCUMENT
B8: TITLE: | C8: aLIGO TCS Ring Heater Parent UHV Cable Assembly
C9: for Production
B11: DOCUMENT CONTROL NO.: | C11: E1000699 | F11: -v6
B12: RELATED DOC. CHANGE NO.: | C12: E1200893 | F12: -v1
B14: CONTAINING the ASSEMBLY: | C14: D1001517 | F14: -v6
B16: AUTHOR: | C16: M. JACOBSON
B17: DATE: | C17: 2012-10-10
B19: PURPOSE: | C19: This document is the formal reference for necessary revisions of each child of the stated assemblies, and the total necessary quantities for all items.
A30: Subsystem: | B30: RH | W30: PDR | X30: delta-PDR | Y30: FDR | Z30: XXX
A31: Reporter: | B31: Mindy Jacobson
A32: Date: | B32: 2010-08-09 | AA32: RESERVED for PROCUREMENT TRACKING
B34: Total No. Dwgs = | C34: =COUNT(U41:U145,U182:U225) -> 80
B35: Aggregate %-complete = | C35: =SUM(U41:U145,U182:U225)/C34 -> 30.5
K37: QUANTITY
A38: DCN | B38: NOTES | C38: Level | D38: INDENTURE CHART | K38: REQ'd | L38: SPARE | M38: TOT. | N38: UNITS | O38: DWG TREE REF. NO. | P38: MATERIAL | Q38: DCC No. | R38: NAME | S38: TYPE | T38: MODEL STATUS | U38: DWG STATUS | V38: SOURCE | W38: REV. | X38: REV. | Y38: REV. | Z38: REV.
A39: No. | T39: % COMPLETE
A40: EXTERNAL TO VACUUM
C41: 0 | K41: 1 | N41: EA | Q41: D1002047 | R41: aLIGO TCS RH ELEMENT WINDING ASSY | S41: TopAssy | T41: 90 | U41: 0 | V41: MTS | W41: N/A | X41: N/A | Y41: V1
C42: 1 | D42: =$C42 -> 1 | E42: 1 | F42: 1 | G42: 1 | H42: 1 | I42: 1 | J42: 1 | K42: 1 | N42: EA | Q42: D1000682 | R42: [TCS] RH GLASS ROD INSULATOR | S42: PRT | T42: 100 | U42: 100 | V42: MTS | W42: N/A | X42: V1 | Y42: V2
C43: 1 | D43: 1 | E43: 1 | F43: 1 | G43: 1 | H43: 1 | I43: 1 | J43: 1 | K43: =2*0.125*PI()*300+2 -> 237.619449 | N43: IN | R43: NICHROME WIRE, 24 BNC [DIA .5 MM] | S43: PRT | T43: 0 | U43: 0 | V43: OTS | W43: N/A
C44: 1 | D44: 1 | E44: 1 | F44: 1 | G44: 1 | H44: 1 | I44: 1 | J44: 1 | K44: 1 | N44: EA | Q44: D1001819 | R44: RH ELEMENT RETAINER LEFT [9 O'CLOCK POSITION] | S44: PRT | T44: 90 | U44: 90 | V44: MTS | W44: N/A | X44: N/A | Y44: V1
C45: 1 | D45: 1 | E45: 1 | F45: 1 | G45: 1 | H45: 1 | I45: 1 | J45: 1 | K45: 1 | N45: EA | Q45: D1001858 | R45: RH ELEMENT RETAINER RIGHT [3 O'CLOCK POSITION] | S45: PRT | T45: 90 | U45: 90 | V45: MTS | W45: N/A | X45: N/A | Y45: V1
C46: 1 | D46: 1 | E46: 1 | F46: 1 | G46: 1 | H46: 1 | I46: 1 | J46: 1 | K46: 2 | N46: EA | Q46: D1001849 | R46: UPPER COPPER PLATE | S46: PRT | T46: 90 | U46: 90 | V46: MTS | W46: N/A | X46: N/A | Y46: V1
C47: 1 | D47: 1 | E47: 1 | F47: 1 | G47: 1 | H47: 1 | I47: 1 | J47: 1 | K47: 2 | N47: EA | Q47: D1001850 | R47: LOWER COPPER PLATE | S47: PRT | T47: 90 | U47: 90 | V47: MTS | W47: N/A | X47: N/A | Y47: V1
C48: 1 | D48: 1 | E48: 1 | F48: 1 | G48: 1 | H48: 1 | I48: 1 | J48: 1 | K48: 2 | N48: EA | Q48: C-210 | R48: SS SHCS-V #2-56 UNC 2A X .625 LONG | S48: HW | T48: 100 | U48: 0 | V48: OTS | W48: N/A | X48: N/A
C49: 1 | D49: 1 | E49: 1 | F49: 1 | G49: 1 | H49: 1 | I49: 1 | J49: 1 | K49: 2 | N49: EA | Q49: N-256 | R49: SS HEX NUT #2-56 UNC 2B | S49: HW | T49: 100 | U49: 0 | V49: OTS | W49: N/A | X49: N/A
C50: 1 | D50: 1 | E50: 1 | F50: 1 | G50: 1 | H50: 1 | I50: 1 | J50: 1 | K50: 1 | N50: EA | Q50: D1002045 | R50: aLIGO TCS RH ELEMENT WINDING TOOL | S50: PRT | T50: 75 | U50: 0 | V50: MTS | W50: N/A | X50: N/A | Y50: V1
C51: 1 | D51: 1 | E51: 1 | F51: 1 | G51: 1 | H51: 1 | I51: 1 | J51: 1 | K51: 4 | N51: EA | Q51: C-406 | R51: SS SHCS-V #4-40 UNC 2A X .375 LONG | S51: HW | T51: 100 | U51: 0 | V51: OTS | W51: N/A | X51: N/A
A53: ELECTRONICS
A54: { } | B54: OTS ? | C54: 0 | D54: =$C54 -> 0 | E54: 0 | F54: 0 | G54: 0 | H54: 0 | I54: 0 | J54: 0 | K54: ? | N54: EA | Q54: DXXXXXXX | R54: aLIGO TCS RH POWER SUPPLY | S54: ASSY | T54: 0 | U54: 0 | W54: N/A
C55: 1 | D55: =$C55 -> 1 | E55: 1 | F55: 1 | G55: 1 | H55: 1 | I55: 1 | J55: 1 | N55: EA | R55: RH POWER SUPPLY ASSY HARDWARE | S55: HW | T55: 0 | U55: 0 | V55: OTS | W55: N/A
C56: 1 | D56: 1 | E56: 1 | F56: 1 | G56: 1 | H56: 1 | I56: 1 | J56: 1 | N56: EA | R56: BOARD LAYOUT | T56: 0 | U56: 0 | V56: MTS | W56: N/A
C57: 1 | D57: 1 | E57: 1 | F57: 1 | G57: 1 | H57: 1 | I57: 1 | J57: 1 | N57: EA | R57: GERBER FILES | T57: 0 | U57: 0 | V57: MTS | W57: N/A
C58: 1 | D58: 1 | E58: 1 | F58: 1 | G58: 1 | H58: 1 | I58: 1 | J58: 1 | N58: EA | R58: SCEMATICS | T58: 0 | U58: 0 | V58: MTS | W58: N/A
C59: 1 | D59: 1 | E59: 1 | F59: 1 | G59: 1 | H59: 1 | I59: 1 | J59: 1 | N59: EA | R59: WIRING DIAGRAMS | T59: 0 | U59: 0 | V59: MTS | W59: N/A
A61: { } | C61: 0 | D61: =$C61 -> 0 | E61: 0 | F61: 0 | G61: 0 | H61: 0 | I61: 0 | J61: 0 | K61: ? | N61: EA | Q61: DXXXXXXX | R61: aLIGO TCS RH DRIVER | S61: ASSY | T61: 0 | U61: 0 | W61: N/A
C62: 1 | D62: 1 | E62: 1 | F62: 1 | G62: 1 | H62: 1 | I62: 1 | J62: 1 | N62: EA | R62: RH DRIVER ASSY HARDWARE | S62: HW | T62: 0 | U62: 0 | V62: OTS | W62: N/A
C63: 1 | D63: 1 | E63: 1 | F63: 1 | G63: 1 | H63: 1 | I63: 1 | J63: 1 | N63: EA | R63: BOARD LAYOUT | T63: 0 | U63: 0 | V63: MTS | W63: N/A
C64: 1 | D64: 1 | E64: 1 | F64: 1 | G64: 1 | H64: 1 | I64: 1 | J64: 1 | N64: EA | R64: GERBER FILES | T64: 0 | U64: 0 | V64: MTS | W64: N/A
C65: 1 | D65: 1 | E65: 1 | F65: 1 | G65: 1 | H65: 1 | I65: 1 | J65: 1 | N65: EA | R65: SCEMATICS | T65: 0 | U65: 0 | V65: MTS | W65: N/A
C66: 1 | D66: 1 | E66: 1 | F66: 1 | G66: 1 | H66: 1 | I66: 1 | J66: 1 | N66: EA | R66: WIRING DIAGRAMS | T66: 0 | U66: 0 | V66: MTS | W66: N/A
A68: { } | C68: 0 | D68: =$C68 -> 0 | E68: 0 | F68: 0 | G68: 0 | H68: 0 | I68: 0 | J68: 0 | K68: ? | N68: EA | Q68: DXXXXXXX | R68: aLIGO TCS RH A-D CONVERTER | S68: ASSY | T68: 0 | U68: 0 | W68: N/A
C69: 1 | D69: 1 | E69: 1 | F69: 1 | G69: 1 | H69: 1 | I69: 1 | J69: 1 | N69: EA | R69: RH A-D CONVERTER ASSY HARDWARE | S69: HW | T69: 0 | U69: 0 | V69: OTS | W69: N/A
C70: 1 | D70: 1 | E70: 1 | F70: 1 | G70: 1 | H70: 1 | I70: 1 | J70: 1 | N70: EA | R70: BOARD LAYOUT | T70: 0 | U70: 0 | V70: MTS | W70: N/A
C71: 1 | D71: 1 | E71: 1 | F71: 1 | G71: 1 | H71: 1 | I71: 1 | J71: 1 | N71: EA | R71: GERBER FILES | T71: 0 | U71: 0 | V71: MTS | W71: N/A
C72: 1 | D72: 1 | E72: 1 | F72: 1 | G72: 1 | H72: 1 | I72: 1 | J72: 1 | N72: EA | R72: SCEMATICS | T72: 0 | U72: 0 | V72: MTS | W72: N/A
C73: 1 | D73: 1 | E73: 1 | F73: 1 | G73: 1 | H73: 1 | I73: 1 | J73: 1 | N73: EA | R73: WIRING DIAGRAMS | T73: 0 | U73: 0 | V73: MTS | W73: N/A
A75: { } | C75: 0 | D75: =$C75 -> 0 | E75: 0 | F75: 0 | G75: 0 | H75: 0 | I75: 0 | J75: 0 | K75: ? | N75: EA | Q75: DXXXXXXX | R75: aLIGO TCS RH D-A CONVERTER | S75: ASSY | T75: 0 | U75: 0 | W75: N/A
C76: 1 | D76: 1 | E76: 1 | F76: 1 | G76: 1 | H76: 1 | I76: 1 | J76: 1 | N76: EA | R76: RH D-A CONVERTER ASSY HARDWARE | S76: HW | T76: 0 | U76: 0 | V76: OTS | W76: N/A
C77: 1 | D77: 1 | E77: 1 | F77: 1 | G77: 1 | H77: 1 | I77: 1 | J77: 1 | N77: EA | R77: BOARD LAYOUT | T77: 0 | U77: 0 | V77: MTS | W77: N/A
C78: 1 | D78: 1 | E78: 1 | F78: 1 | G78: 1 | H78: 1 | I78: 1 | J78: 1 | N78: EA | R78: GERBER FILES | T78: 0 | U78: 0 | V78: MTS | W78: N/A
C79: 1 | D79: 1 | E79: 1 | F79: 1 | G79: 1 | H79: 1 | I79: 1 | J79: 1 | N79: EA | R79: SCEMATICS | T79: 0 | U79: 0 | V79: MTS | W79: N/A
C80: 1 | D80: 1 | E80: 1 | F80: 1 | G80: 1 | H80: 1 | I80: 1 | J80: 1 | N80: EA | R80: WIRING DIAGRAMS | T80: 0 | U80: 0 | V80: MTS | W80: N/A
A82: { } | C82: 0 | D82: =$C82 -> 0 | E82: 0 | F82: 0 | G82: 0 | H82: 0 | I82: 0 | J82: 0 | K82: ? | N82: ? | Q82: DXXXXXXX | R82: aLIGO TCS RH IN-AIR CABLE ASSY | S82: ASSY | T82: 0 | U82: 0 | W82: N/A
T83: 0 | U83: 0 | W83: N/A
T84: 0 | U84: 0 | W84: N/A
A86: E1100950 | C86: 0 | D86: =$C86 -> 0 | E86: 0 | F86: 0 | G86: 0 | H86: 0 | I86: 0 | J86: 0 | K86: 12 | L86: 3 | M86: =K86+L86 -> 15 | N86: EA | O86: D1000699 | Q86: D1001517 | R86: aLIGO TCS RH IN-VAC CABLE ASSY | S86: ASSY | T86: 50 | U86: 0 | V86: MTS | W86: N/A | Y86: V6
B87: WTG Group (PN is for qty 100) | C87: 1 | D87: 1 | E87: 1 | F87: 1 | G87: 1 | H87: 1 | I87: 1 | J87: 1 | K87: 10 | L87: 90 | M87: =K87+L87 -> 100 | N87: EA | P87: SS | Q87: PN A31189 | R87: STAINLESS STEEL CABLE TIE, 1/8 IN | S87: ASSY | V87: OTS
B88: Caltech Provided | C88: 1 | D88: 1 | E88: 1 | F88: 1 | G88: 1 | H88: 1 | I88: 1 | J88: 1 | K88: 1 | L88: 0 | M88: 1 | N88: EA | P88: Al 6061 | Q88: D1002420 | R88: CUSTOM BRACKET ADAPTER | S88: PRT | V88: MTS | Y88: V1
B89: UC COMPONENTS | C89: 1 | D89: 1 | E89: 1 | F89: 1 | G89: 1 | H89: 1 | I89: 1 | J89: 1 | K89: 2 | L89: 0 | M89: 2 | N89: EA | P89: SS | Q89: C810-N | R89: SSHC, 8-32 UNC-2A x 5/8 LONG | S89: HW | V89: OTS
B90: UC COMPONENTS | C90: 1 | D90: 1 | E90: 1 | F90: 1 | G90: 1 | H90: 1 | I90: 1 | J90: 1 | K90: 2 | L90: 0 | M90: 2 | N90: EA | P90: SS | Q90: WF-25-A | R90: WASHER, FLAT, #8, .169 ID x .304 OD, .032 THK | S90: HW | V90: OTS
A91: E1100950 | B91: AccuGlass PN 6-100000 | C91: 1 | D91: 1 | E91: 1 | F91: 1 | G91: 1 | H91: 1 | I91: 1 | J91: 1 | K91: 1 | M91: 1 | N91: EA | Q91: D1001518 | R91: CABLE ASSY, UPPER HEATER | S91: ASSY | V91: MTS | Y91: V7
B92: OMEGA | C92: 2 | D92: 2 | E92: 2 | F92: 2 | G92: 2 | H92: 2 | I92: 2 | J92: 2 | K92: 17 | M92: 17 | N92: IN | P92: Cu/Fiberglass | Q92: PN EXGG-4CU-26S | R92: Wire PN EXGG-4CU-26S, 4 CONDUCTORS | S92: PRT | V92: OTS
B93: OMEGA | C93: 3 | D93: 3 | E93: 3 | F93: 3 | G93: 3 | H93: 3 | I93: 3 | J93: 3 | K93: 1 | M93: 1 | N93: EA | P93: Pt / Ceramic | Q93: 1PT100KN1515CLA | R93: CERAMIC Pt RTD | S93: PRT | V93: OTS
C94: 3 | D94: 3 | E94: 3 | F94: 3 | G94: 3 | H94: 3 | I94: 3 | J94: 3 | K94: trc | M94: 1 | N94: IN | P94: see MSDS | Q94: PN 110796 | R94: UHV SOLDER | S94: PRT | V94: OTS
C95: 3 | D95: 3 | E95: 3 | F95: 3 | G95: 3 | H95: 3 | I95: 3 | J95: 3 | K95: trc | M95: 0.5 | N95: OZ | P95: see MSDS | Q95: PN 110797 | R95: SOLDER FLUX | S95: PRT | V95: OTS
B96: WTG Group (PN is for qty 100) | C96: 2 | D96: 2 | E96: 2 | F96: 2 | G96: 2 | H96: 2 | I96: 2 | J96: 2 | K96: 2 | M96: 2 | N96: EA | P96: SS | Q96: PN A31189 | R96: STAINLESS STEEL CABLE TIE, 1/8 IN | S96: PRT | V96: OTS
B97: Caltech Provided | C97: 2 | D97: =$C97 -> 2 | E97: 2 | F97: 2 | G97: 2 | H97: 2 | I97: 2 | J97: 2 | K97: 19 | M97: =K97+L97 -> 19 | N97: IN | P97: Peek | Q97: PN 111167 | R97: BRAID, PEEK DRAWN MONOFILAMENT SHIELDING | S97: PRT | V97: OTS
C98: 2 | D98: 2 | E98: 2 | F98: 2 | G98: 2 | H98: 2 | I98: 2 | J98: 2 | K98: 2 | M98: 2 | N98: EA | Q98: PN 602258 | R98: CUSTOM SHIELDED, TWISTED WIRE HARNESS | S98: ASSY | V98: OTS
C99: 3 | D99: 3 | E99: 3 | F99: 3 | G99: 3 | H99: 3 | I99: 3 | J99: 3 | K99: 19 | M99: 19 | N99: IN | P99: Cu/Kapton/SS | Q99: PN 112734 | R99: SHIELDED 2-TWISTED PAIR WIRE, ACCUGLASS | S99: PRT | V99: OTS
C100: 3 | D100: 3 | E100: 3 | F100: 3 | G100: 3 | H100: 3 | I100: 3 | J100: 3 | K100: 1 | M100: 1 | N100: EA | P100: Cu/SS/Peek | Q100: PN 602257 | R100: USER END 400 CONNECTOR ASSY | S100: PRT | V100: OTS
C101: 2 | D101: 2 | E101: 2 | F101: 2 | G101: 2 | H101: 2 | I101: 2 | J101: 2 | K101: 1 | M101: 1 | N101: EA | P101: Peek | R101: UHV MALE DB25 CONNECTOR | S101: PRT | V101: MTS | Y101: B
C102: 2 | D102: 2 | E102: 2 | F102: 2 | G102: 2 | H102: 2 | I102: 2 | J102: 2 | K102: 1 | M102: 1 | N102: EA | P102: SS | R102: DB25 3-PORT CONNECTOR BACKSHELL W/ VENTHOLE | S102: PRT | V102: MTS | Y102: B
B103: GLENAIR | C103: 2 | D103: 2 | E103: 2 | F103: 2 | G103: 2 | H103: 2 | I103: 2 | J103: 2 | K103: 2 | M103: 2 | N103: EA | Q103: 600-052 | R103: STANDARD BRAID CLAMP, GLENAIR | S103: PRT
A104: E1100950 | B104: AccuGlass PN 6-100001 | C104: 1 | D104: 1 | E104: 1 | F104: 1 | G104: 1 | H104: 1 | I104: 1 | J104: 1 | K104: 1 | M104: 1 | N104: EA | Q104: D1001519 | R104: CABLE ASSY, LOWER HEATER | S104: ASSY | V104: MTS | Y104: V6
B105: OMEGA | C105: 2 | D105: 2 | E105: 2 | F105: 2 | G105: 2 | H105: 2 | I105: 2 | J105: 2 | K105: 27 | M105: 27 | N105: IN | P105: Cu/Fiberglass | Q105: PN EXGG-4CU-26S | R105: Wire PN EXGG-4CU-26S, 4 CONDUCTORS | S105: PRT | V105: OTS
B106: OMEGA | C106: 3 | D106: 3 | E106: 3 | F106: 3 | G106: 3 | H106: 3 | I106: 3 | J106: 3 | K106: 1 | M106: 1 | N106: EA | P106: Pt / Ceramic | Q106: 1PT100KN1515CLA | R106: CERAMIC Pt RTD | S106: PRT | V106: OTS
C107: 3 | D107: 3 | E107: 3 | F107: 3 | G107: 3 | H107: 3 | I107: 3 | J107: 3 | K107: trc | M107: 1 | N107: IN | P107: see MSDS | Q107: PN 110796 | R107: UHV SOLDER | S107: PRT | V107: OTS
C108: 3 | D108: 3 | E108: 3 | F108: 3 | G108: 3 | H108: 3 | I108: 3 | J108: 3 | K108: trc | M108: 0.5 | N108: OZ | P108: see MSDS | Q108: PN 110797 | R108: SOLDER FLUX | S108: PRT | V108: OTS
B109: WTG Group (PN is for qty 100) | C109: 2 | D109: 2 | E109: 2 | F109: 2 | G109: 2 | H109: 2 | I109: 2 | J109: 2 | K109: 2 | M109: =K109+L109 -> 2 | N109: EA | P109: SS | Q109: PN A31189 | R109: STAINLESS STEEL CABLE TIE, 1/8 IN | S109: PRT | V109: OTS
B110: Caltech Provided | C110: 2 | D110: =$C110 -> 2 | E110: 2 | F110: 2 | G110: 2 | H110: 2 | I110: 2 | J110: 2 | K110: 30 | M110: =K110+L110 -> 30 | N110: IN | P110: Peek | Q110: PN 111167 | R110: BRAID, PEEK DRAWN MONOFILAMENT SHIELDING | S110: PRT | V110: OTS
C111: 2 | D111: 2 | E111: 2 | F111: 2 | G111: 2 | H111: 2 | I111: 2 | J111: 2 | K111: 2 | M111: 2 | N111: EA | Q111: PN 602258 | R111: CUSTOM SHIELDED, TWISTED WIRE HARNESS | S111: ASSY | V111: OTS
C112: 3 | D112: 3 | E112: 3 | F112: 3 | G112: 3 | H112: 3 | I112: 3 | J112: 3 | K112: 30 | M112: 30 | N112: IN | P112: Cu/Kapton/SS | Q112: PN 112734 | R112: SHIELDED 2-TWISTED PAIR WIRE, ACCUGLASS | S112: PRT | V112: OTS
C113: 3 | D113: 3 | E113: 3 | F113: 3 | G113: 3 | H113: 3 | I113: 3 | J113: 3 | K113: 1 | M113: 1 | N113: EA | P113: Cu/SS/Peek | Q113: PN 602257 | R113: USER END 400 CONNECTOR ASSY | S113: PRT | V113: OTS
C114: 2 | D114: 2 | E114: 2 | F114: 2 | G114: 2 | H114: 2 | I114: 2 | J114: 2 | K114: 1 | M114: 1 | N114: EA | P114: Peek | R114: UHV MALE DB25 CONNECTOR | S114: PRT | V114: MTS | Y114: B
C115: 2 | D115: =$C115 -> 2 | E115: 2 | F115: 2 | G115: 2 | H115: 2 | I115: 2 | J115: 2 | K115: 1 | M115: 1 | N115: EA | P115: SS | R115: DB25 3-PORT CONNECTOR BACKSHELL W/ VENTHOLE | S115: PRT | V115: MTS | Y115: B
B116: GLENAIR | C116: 2 | D116: 2 | E116: 2 | F116: 2 | G116: 2 | H116: 2 | I116: 2 | J116: 2 | K116: 2 | M116: 2 | N116: EA | Q116: 600-052 | R116: STANDARD BRAID CLAMP, GLENAIR | S116: PRT
A117: E1100950 | B117: AccuGlass PN 6-100002 | C117: 1 | D117: 1 | E117: 1 | F117: 1 | G117: 1 | H117: 1 | I117: 1 | J117: 1 | K117: 1 | M117: 1 | N117: EA | Q117: D1001520 | R117: LOWER QUAD TERM BLOCK TO UPPER QUAD TERM BLOCK | S117: ASSY | V117: MTS | Y117: V5
B118: Caltech Provided | C118: 2 | D118: 2 | E118: 2 | F118: 2 | G118: 2 | H118: 2 | I118: 2 | J118: 2 | K118: 1 | M118: 1 | N118: EA | P118: Al 6061 | Q118: D1001755 | R118: CUSTOM BRKT, 25D CONNECTOR INTERFACE | S118: PRT | V118: MTS | Y118: v1
B119: UC COMPONENTS | C119: 3 | D119: 3 | E119: 3 | F119: 3 | G119: 3 | H119: 3 | I119: 3 | J119: 3 | K119: 2 | M119: 2 | N119: EA | P119: SS | Q119: C810-N | R119: SSHC, 8-32 UNC-2A x 5/8 LONG | S119: HW | V119: OTS
B120: UC COMPONENTS | C120: 3 | D120: 3 | E120: 3 | F120: 3 | G120: 3 | H120: 3 | I120: 3 | J120: 3 | K120: 2 | M120: 2 | N120: EA | P120: SS, Ag Plated | Q120: WF-08-A | R120: FLAT WASHER, #8 x .169 ID x .304 OD, .032 THICK, Ag PLATED SS | S120: HW | V120: OTS
B121: UC COMPONENTS | C121: 2 | D121: 2 | E121: 2 | F121: 2 | G121: 2 | H121: 2 | I121: 2 | J121: 2 | K121: 4 | M121: 4 | N121: EA | P121: SS | Q121: C416-N | R121: SSHC, #4-40 UNC-2A X 1 LONG, STAINLESS | S121: HW | V121: OTS
B122: UC COMPONENTS | C122: 2 | D122: 2 | E122: 2 | F122: 2 | G122: 2 | H122: 2 | I122: 2 | J122: 2 | K122: 4 | M122: 4 | N122: EA | P122: SS | Q122: C414-N | R122: SSHC, #4-40 UNC-2A X 7/8 LONG, STAINLESS | S122: HW | V122: OTS
C123: 2 | D123: 2 | E123: 2 | F123: 2 | G123: 2 | H123: 2 | I123: 2 | J123: 2 | K123: 2 | M123: 2 | N123: EA | P123: Peek | R123: UHV FEMALE 25D CONNECTOR | S123: PRT | V123: MTS | Y123: B
C124: 2 | D124: 2 | E124: 2 | F124: 2 | G124: 2 | H124: 2 | I124: 2 | J124: 2 | K124: 2 | M124: 2 | N124: EA | P124: SS | R124: UHV DB25 BACKSHELL, SINGLE PORT W/ VENT | S124: PRT | V124: MTS | Y124: B
C125: 2 | D125: 2 | E125: 2 | F125: 2 | G125: 2 | H125: 2 | I125: 2 | J125: 2 | K125: 120 | M125: 120 | N125: IN | P125: Cu/Kapton/SS | Q125: PN 112738 | R125: SHIELDED 6-TWISTED PAIR WIRE, ACCUGLASS | S125: PRT | V125: OTS
C126: 2 | D126: 2 | E126: 2 | F126: 2 | G126: 2 | H126: 2 | I126: 2 | J126: 2 | K126: 120 | M126: 120 | N126: IN | P126: Peek | Q126: 111167 | R126: BRAID, PEEK DRAWN MONOFILAMENT SHIELDING | S126: PRT | V126: OTS
B127: Caltech Provided | C127: 2 | D127: 2 | E127: 2 | F127: 2 | G127: 2 | H127: 2 | I127: 2 | J127: 2 | K127: 8 | M127: 8 | N127: EA | P127: Ceramic | Q127: D1002345 | R127: ELECTRICAL CONNECTOR BUSHING | S127: PRT | V127: MTS | Y127: V2
B128: AccuGlass PN 6-100003-A | C128: 2 | D128: 2 | E128: 2 | F128: 2 | G128: 2 | H128: 2 | I128: 2 | J128: 2 | K128: 4 | M128: 4 | N128: EA | P128: Peek | Q128: D1002346 | R128: ELECTRICAL CONNECTOR NUT PLATE | S128: PRT | V128: MTS | Y128: V1
C129: 2 | D129: 2 | E129: 2 | F129: 2 | G129: 2 | H129: 2 | I129: 2 | J129: 2 | K129: 1 | M129: 1 | N129: EA | P129: Peek | R129: UHV MALE 25D CONNECTOR | S129: PRT | V129: MTS | Y129: B
C130: 2 | D130: 2 | E130: 2 | F130: 2 | G130: 2 | H130: 2 | I130: 2 | J130: 2 | K130: 1 | M130: 1 | N130: EA | P130: SS | R130: UHV DB25 BACKSHELL, TWO PORTS W/ VENT | S130: PRT | V130: MTS | Y130: B
A131: E1100950 | B131: AccuGlass PN 6-100004 | C131: 1 | D131: =$C131 -> 1 | E131: 1 | F131: 1 | G131: 1 | H131: 1 | I131: 1 | J131: 1 | K131: 1 | M131: 1 | N131: EA | Q131: D1001521 | R131: TERM BLOCK TO UPPER QUAD | S131: ASSY | V131: MTS | Y131: V6
B132: Caltech Provided | C132: 2 | D132: 2 | E132: 2 | F132: 2 | G132: 2 | H132: 2 | I132: 2 | J132: 2 | K132: 1 | M132: 1 | N132: EA | P132: Al 6061 | Q132: D1001756 | R132: CUSTOM BRKT, 25D CONNECTOR INTERFACE | S132: PRT | V132: MTS | Y132: V2
B133: UC COMPONENTS | C133: 3 | D133: 3 | E133: 3 | F133: 3 | G133: 3 | H133: 3 | I133: 3 | J133: 3 | K133: 2 | M133: 2 | N133: EA | P133: SS | Q133: C2012 | R133: SSHC, 1/4-20 UNC-2A X 3/4 LONG | S133: HW | V133: OTS
A134: E1200893-v1 | B134: UC COMPONENTS | C134: 3 | D134: 3 | E134: 3 | F134: 3 | G134: 3 | H134: 3 | I134: 3 | J134: 3 | K134: 4 | M134: 4 | N134: EA | P134: Al 6061 | Q134: D1102074 | R134: NUT PLATE, UPPER UHV RING HEATER CABLE CONN BRKT | S134: PRT | V134: MTS | Y134: V2
C135: 4 | D135: 4 | E135: 4 | F135: 4 | G135: 4 | H135: 4 | I135: 4 | J135: 4 | K135: 2 | L135: 2 | M135: 4 | N135: EA | P135: Nitronic 60 | Q135: 1185-4EN250 | R135: HELICOIL INSERT, 1/4-20 x .25 LONG | S135: HW | V135: OTS
A136: E1200893-v1 | B136: UC COMPONENTS | C136: 3 | D136: 3 | E136: 3 | F136: 3 | G136: 3 | H136: 3 | I136: 3 | J136: 3 | K136: 2 | M136: 2 | N136: EA | P136: SS | Q136: D1102077 | R136: WASHER PLATE | S136: PRT | T136: 75 | U136: 0 | V136: MTS | W136: N/A | X136: N/A | Y136: V2
C137: 2 | D137: 2 | E137: 2 | F137: 2 | G137: 2 | H137: 2 | I137: 2 | J137: 2 | K137: 1 | M137: 1 | N137: EA | P137: Peek | R137: UHV FEMALE 25D CONNECTOR | S137: PRT | T137: 0 | U137: 0 | V137: MTS | W137: N/A | Y137: B
C138: 2 | D138: 2 | E138: 2 | F138: 2 | G138: 2 | H138: 2 | I138: 2 | J138: 2 | K138: 1 | M138: 1 | N138: EA | P138: SS | R138: UHV DB25 BACKSHELL, SINGLE PORT, W/ VENT AND FLANGE | S138: PRT | T138: 0 | U138: 0 | V138: MTS | W138: N/A | Y138: B
C139: 2 | D139: 2 | E139: 2 | F139: 2 | G139: 2 | H139: 2 | I139: 2 | J139: 2 | K139: 1 | M139: 1 | N139: EA | P139: Peek | R139: UHV MALE 25D CONNECTOR | S139: PRT | T139: 100 | U139: 0 | V139: MTS | W139: N/A | Y139: B
C140: 2 | D140: 2 | E140: 2 | F140: 2 | G140: 2 | H140: 2 | I140: 2 | J140: 2 | K140: 1 | M140: 1 | N140: EA | P140: SS | R140: UHV DB25 BACKSHELL, SINGLE PORT, W/ VENT AND FLANGE | S140: PRT | T140: 100 | U140: 100 | V140: MTS | W140: N/A | Y140: B
C141: 2 | D141: 2 | E141: 2 | F141: 2 | G141: 2 | H141: 2 | I141: 2 | J141: 2 | K141: 114 | M141: 114 | N141: IN | P141: Cu/Kapton/SS | Q141: PN 112143 | R141: SHIELDED 12-TWISTED PAIR WIRE, ACCUGLASS PN 112143 | S141: PRT | T141: 100 | U141: 0 | V141: OTS | W141: N/A
B142: Caltech Provided | C142: 2 | D142: 2 | E142: 2 | F142: 2 | G142: 2 | H142: 2 | I142: 2 | J142: 2 | K142: 114 | M142: 114 | N142: IN | P142: Peek | Q142: 111167 | R142: BRAID, PEEK DRAWN MONOFILAMENT SHIELDING | S142: PRT | T142: 75 | U142: 0 | V142: OTS | W142: N/A | X142: N/A
B143: Caltech Provided | C143: 2 | D143: 2 | E143: 2 | F143: 2 | G143: 2 | H143: 2 | I143: 2 | J143: 2 | K143: 4 | M143: 4 | N143: EA | P143: Ceramic | Q143: D1002345 | R143: ELECTRICAL CONNECTOR BUSHING | S143: PRT | T143: 0 | U143: 0 | V143: MTS | W143: N/A | Y143: V2
B144: AccuGlass PN 6-100003-A | C144: 2 | D144: 2 | E144: 2 | F144: 2 | G144: 2 | H144: 2 | I144: 2 | J144: 2 | K144: 2 | M144: 2 | N144: EA | P144: Peek | Q144: D1002346 | R144: ELECTRICAL CONNECTOR NUT PLATE | S144: PRT | T144: 0 | U144: 0 | V144: MTS | W144: N/A | Y144: V1
B145: UC COMPONENTS | C145: 2 | D145: 2 | E145: 2 | F145: 2 | G145: 2 | H145: 2 | I145: 2 | J145: 2 | K145: 4 | M145: 4 | N145: EA | P145: SS | Q145: C-414-N | R145: SSHC, #4-40 UNC-2A X 7/8 LONG | S145: HW | T145: 100 | U145: 0 | V145: OTS | W145: N/A
A146: INTERNAL TO VACUUM
A147: E900345-v1 | C147: 0 | D147: =$C147 -> 0 | E147: 0 | F147: 0 | G147: 0 | H147: 0 | I147: 0 | J147: 0 | K147: 1 | N147: EA | Q147: D0901269 | R147: ADV_LIGO_TCS_RING_HEATER_AND_SHIELD_ASSEM | S147: TopAssy | T147: 100 | U147: 100 | V147: MTS | W147: v2 | AA147: =1948.5*15 -> 29227.5
C148: 1 | D148: 1 | E148: 1 | F148: 1 | G148: 1 | H148: 1 | I148: 1 | J148: 1 | K148: 1 | N148: EA | O148: 1 | Q148: D0902351 | R148: ADLIGO TCS RING HEATER SHIELD | S148: PRT | T148: 100 | U148: 100 | V148: MTS | W148: V1
C149: 1 | D149: 1 | E149: 1 | F149: 1 | G149: 1 | H149: 1 | I149: 1 | J149: 1 | K149: 1 | N149: EA | O149: 2 | Q149: D0902408 | R149: ADLIGO TCS RING HEATER BACK PLATE RH | S149: PRT | T149: 100 | U149: 90 | V149: MTS | W149: N/A
C150: 1 | D150: 1 | E150: 1 | F150: 1 | G150: 1 | H150: 1 | I150: 1 | J150: 1 | K150: 1 | N150: EA | O150: 3 | Q150: D0902409 | R150: ADLIGO TCS RING HEATER BACK PLATE LH | S150: PRT | T150: 100 | U150: 90 | V150: MTS | W150: N/A
C151: 1 | D151: 1 | E151: 1 | F151: 1 | G151: 1 | H151: 1 | I151: 1 | J151: 1 | K151: 2 | N151: EA | O151: 4 | Q151: D0902410 | R151: ADLIGO TCS RING HEATER BLOCK | S151: PRT | T151: 100 | U151: 90 | V151: MTS | W151: N/A
B152: WATLOW (?) | C152: 1 | D152: 1 | E152: 1 | F152: 1 | G152: 1 | H152: 1 | I152: 1 | J152: 1 | K152: 1 | N152: EA | O152: 5 | Q152: D0901279 | R152: TCS_RING_HEATER_ELEMENT | S152: PRT | T152: 100 | U152: 0 | V152: OTS | W152: N/A
B153: QTY INCL (1) SPR | C153: 1 | D153: 1 | E153: 1 | F153: 1 | G153: 1 | H153: 1 | I153: 1 | J153: 1 | K153: 9 | N153: EA | O153: 6 | R153: #4-40X.188 FLT HD SKT SCR, SST [18-8 SST] | S153: HW | T153: 100 | U153: 0 | V153: OTS
A154: E900345-v1 | B154: LASTI retrofit assy | C154: 0 | D154: 0 | E154: 0 | F154: 0 | G154: 0 | H154: 0 | I154: 0 | J154: 0 | N154: EA | Q154: D0902447 | R154: LASTI TCS RING HEATER INSTALLATION RETROFIT | S154: ASSY | T154: 100 | U154: 100 | V154: MTS | W154: V1 | X154: N/A
C155: 1 | D155: 1 | E155: 1 | F155: 1 | G155: 1 | H155: 1 | I155: 1 | J155: 1 | K155: 1 | N155: EA | O155: { REF } | Q155: D0902351 | R155: ADLIGO TCS RING HEATER SHIELD | S155: PRT | T155: 100 | U155: 100 | V155: MTS | W155: V1
A156: { } | B156: CONSTRAINT | C156: 2 | D156: 2 | E156: 2 | F156: 2 | G156: 2 | H156: 2 | I156: 2 | J156: 2 | K156: 1 | N156: EA | O156: { } | Q156: D1000270 | R156: TCS ALLOWABLE RH ELEMENT ENVELOPE | S156: VOL | T156: 100 | U156: 100 | V156: OTS | W156: V1
C157: 1 | D157: 1 | E157: 1 | F157: 1 | G157: 1 | H157: 1 | I157: 1 | J157: 1 | K157: 1 | N157: EA | O157: 1 | Q157: D0902448 | R157: LASTI TCS RING HEATER BACK PLATE RH | S157: PRT | T157: 100 | U157: 100 | V157: MTS | W157: V1
C158: 1 | D158: 1 | E158: 1 | F158: 1 | G158: 1 | H158: 1 | I158: 1 | J158: 1 | K158: 1 | N158: EA | O158: 2 | Q158: D0902449 | R158: LASTI TCS RING HEATER BACK PLATE LH | S158: PRT | T158: 100 | U158: 100 | V158: MTS | W158: V1
B159: DWG.TR E900344-V1 | C159: 1 | D159: 1 | E159: 1 | F159: 1 | G159: 1 | H159: 1 | I159: 1 | J159: 1 | K159: 2 | N159: EA | O159: { REF } | Q159: D0902450 | R159: LASTI TCS RING HEATER BLOCK | S159: PRT | T159: 100 | U159: 100 | V159: MTS | W159: V1
C160: 1 | D160: 1 | E160: 1 | F160: 1 | G160: 1 | H160: 1 | I160: 1 | J160: 1 | K160: 4 | N160: EA | O160: { } | R160: FH SCR, PHILIPS, #4-40 X 3/16 LG, SST | S160: HW | T160: 100 | U160: 0 | V160: OTS
C161: 1 | D161: 1 | E161: 1 | F161: 1 | G161: 1 | H161: 1 | I161: 1 | J161: 1 | K161: 4 | N161: EA | O161: { } | R161: FH SCR, PHILIPS, #2-56 X 3/16 LG, SST | S161: HW | T161: 100 | U161: 0 | V161: OTS
A162: { } | B162: QTYs ARE PER OPTIC | C162: 0 | D162: 0 | E162: 0 | F162: 0 | G162: 0 | H162: 0 | I162: 0 | J162: 0 | K162: 2 | N162: EA | Q162: D1000978 | R162: ALIGO [TCS] RING HEATER ASSY | S162: TopAssy | T162: 90 | U162: 0 | V162: MTS | W162: N/A | X162: V1 | Y162: N/A
A163: E1000154-v1 | C163: 1 | D163: 1 | E163: 1 | F163: 1 | G163: 1 | H163: 1 | I163: 1 | J163: 1 | K163: 1 | N163: EA | Q163: D1000969 | R163: ALIGO TCS MONOLITH RH SHIELD | S163: PRT | T163: 100 | U163: 90 | V163: MTS | W163: N/A | X163: V2 | Y163: N/A | AA163: =2780*30 -> 83400
A164: { } | B164: CONSTRAINT | C164: 2 | D164: 2 | E164: 2 | F164: 2 | G164: 2 | H164: 2 | I164: 2 | J164: 2 | K164: 1 | N164: EA | Q164: D1000270 | R164: TCS ALLOWABLE RH ELEMENT ENVELOPE | S164: VOL | T164: 100 | U164: 100 | V164: OTS | W164: N/A | X164: V1
B165: either this OR D1000945 | C165: 1 | D165: 1 | E165: 1 | F165: 1 | G165: 1 | H165: 1 | I165: 1 | J165: 1 | K165: 1 | N165: EA | Q165: D1001187 | R165: TCS RING HEATER ELEMENT ASSEMBLY, LASTI | S165: ASSY | T165: 50 | U165: 0 | V165: MTS | W165: N/A | X165: V1
C166: 2 | D166: 2 | E166: 2 | F166: 2 | G166: 2 | H166: 2 | I166: 2 | J166: 2 | K166: 1 | N166: EA | Q166: D1000682 | R166: [TCS] RH GLASS ROD INSULATOR | S166: PRT | T166: 100 | U166: 100 | V166: MTS | W166: N/A | AA166: =100*30 -> 3000
C167: 2 | D167: 2 | E167: 2 | F167: 2 | G167: 2 | H167: 2 | I167: 2 | J167: 2 | K167: 2 | N167: EA | Q167: D1001063 | R167: GLASS ROD RETAINER | S167: PRT | T167: 90 | U167: 0 | V167: MTS | W167: N/A
C168: 2 | D168: 2 | E168: 2 | F168: 2 | G168: 2 | H168: 2 | I168: 2 | J168: 2 | K168: 60 | N168: IN | R168: NICHROME WIRE, 24 BNC [DIA .5 MM] | S168: PRT | T168: 0 | U168: 0 | V168: OTS | W168: N/A
B169: either this OR D1001187 | C169: 1 | D169: 1 | E169: 1 | F169: 1 | G169: 1 | H169: 1 | I169: 1 | J169: 1 | K169: 1 | N169: EA | Q169: D1000945 | R169: ALIGO TEST MASS RING HEATER ASSEMBLY [M.A._UF] | S169: HW | T169: 90 | U169: 90 | V169: MTS | W169: N/A | X169: V1 | AA169: =4000*30 -> 120000
C170: 2 | D170: 2 | E170: 2 | F170: 2 | G170: 2 | H170: 2 | I170: 2 | J170: 2 | K170: 2 | N170: EA | Q170: D1000970 | R170: ALIGO TEST MASS RING HEATER SUPPORT BLOCK | S170: PRT | T170: 100 | U170: 90 | V170: MTS | W170: N/A
C171: 2 | D171: 2 | E171: 2 | F171: 2 | G171: 2 | H171: 2 | I171: 2 | J171: 2 | K171: 2 | N171: EA | Q171: D1000956 | R171: ALIGO TEST MASS RING HEATER WIRE INTERSECTION BLOCK | S171: PRT | T171: 100 | U171: 90 | V171: MTS | W171: N/A
C172: 2 | D172: =$C172 -> 2 | E172: 2 | F172: 2 | G172: 2 | H172: 2 | I172: 2 | J172: 2 | K172: 4 | N172: EA | Q172: D1001016 | R172: ALIGO TEST MASS RING HEATER WIRE PLATE | S172: PRT | T172: 100 | U172: 90 | V172: MTS | W172: N/A
C173: 2 | D173: 2 | E173: 2 | F173: 2 | G173: 2 | H173: 2 | I173: 2 | J173: 2 | K173: 1 | N173: EA | Q173: D1000943 | R173: ALIGO TEST MASS RING HEATER INNER RING | S173: PRT | T173: 100 | U173: 90 | V173: MTS | W173: N/A | X173: V2 | Y173: N/A | AA173: =625*30 -> 18750
C174: 2 | D174: 2 | E174: 2 | F174: 2 | G174: 2 | H174: 2 | I174: 2 | J174: 2 | K174: 1 | N174: EA | Q174: D1000944 | R174: ALIGO TEST MASS RING HEATER OUTER RING | S174: PRT | T174: 100 | U174: 90 | V174: MTS | W174: N/A | X174: V2 | Y174: N/A | AA174: =625*30 -> 18750
C175: 2 | D175: 2 | E175: 2 | F175: 2 | G175: 2 | H175: 2 | I175: 2 | J175: 2 | K175: 3 | N175: EA | R175: SS FHCS 2-56 X .25 L | S175: HW | T175: 100 | U175: 0 | V175: OTS | W175: N/A
B176: Ortech | C176: 2 | D176: 2 | E176: 2 | F176: 2 | G176: 2 | H176: 2 | I176: 2 | J176: 2 | K176: 2 | N176: EA | R176: ORTECH CERAMIC SET SCREW 2-56 X .25 L | S176: HW | T176: 100 | U176: 0 | V176: OTS | W176: N/A
C177: 2 | D177: =$C177 -> 2 | E177: 2 | F177: 2 | G177: 2 | H177: 2 | I177: 2 | J177: 2 | K177: 4 | N177: EA | R177: SS VENTED SHCS 2-56 X .1875 L | S177: HW | T177: 100 | U177: 0 | V177: OTS | W177: N/A
C178: 2 | D178: 2 | E178: 2 | F178: 2 | G178: 2 | H178: 2 | I178: 2 | J178: 2 | K178: 4 | N178: IN | R178: INSULATED COPPER WIRE, 28 AWG | S178: PRT | T178: 100 | U178: 0 | V178: OTS | W178: N/A
C179: 1 | D179: 1 | E179: 1 | F179: 1 | G179: 1 | H179: 1 | I179: 1 | J179: 1 | K179: 2 | N179: EA | Q179: Dxxxxxxx | R179: IN-LINE UHV CONNECTOR ASSY | S179: ASSY | T179: 100 | U179: 0 | V179: MTS | W179: N/A | X179: N/A | Y179: V1
B180: AccuGlass Inc | C180: 2 | D180: 2 | E180: 2 | F180: 2 | G180: 2 | H180: 2 | I180: 2 | J180: 2 | K180: 1 | N180: EA | Q180: PN 100171 | R180: ACCUGLASS CONNECTOR 100171 | S180: PRT | T180: 100 | U180: 0 | V180: OTS | W180: N/A | X180: N/A
C181: 1 | D181: 1 | E181: 1 | F181: 1 | G181: 1 | H181: 1 | I181: 1 | J181: 1 | K181: 1 | N181: EA | Q181: D1001516 | R181: WIRE GUIDE BUSHING | S181: PRT | T181: 100 | U181: 0 | V181: MTS | W181: N/A | X181: N/A | Y181: V1
B183: PER OPTIC QTY | C183: 0 | K183: 1 | L183: 1 | M183: =SUM(K183:L183) -> 2 | N183: EA | Q183: D1002027 | R183: aLIGO SYS-TCS INTEGRATION OF RH WITH TM | S183: TopAssy | T183: 90 | U183: 0 | V183: MTS | W183: N/A | X183: N/A | Y183: V1
A184: E1000291 | C184: 1 | D184: =$C184 -> 1 | E184: 1 | F184: 1 | G184: 1 | H184: 1 | I184: 1 | J184: 1 | K184: 1 | L184: 0 | M184: =SUM(K184:L184) -> 1 | N184: EA | O184: E1000295 | Q184: D1001838 | R184: aLIGO [TCS] UPPER SEGMENT RING HEATER ASSY | S184: ASSY | T184: 100 | U184: 90 | V184: MTS | W184: N/A | X184: N/A | Y184: V2
C185: 2 | D185: 2 | E185: 2 | F185: 2 | G185: 2 | H185: 2 | I185: 2 | J185: 2 | K185: 1 | L185: 0 | M185: =SUM(K185:L185) -> 1 | N185: EA | P185: Al, Au-coated | Q185: D1001679 | R185: ALIGO TCS UPPER MONOLITH RH SHIELD | S185: PRT | T185: 100 | U185: 90 | V185: MTS | W185: N/A | X185: N/A | Y185: V3 | AA185: =3000*15 -> 45000
C186: 2 | F186: 2 | K186: 1 | L186: 1 | M186: 2 | N186: EA | P186: glass | Q186: D1002538 | R186: SIMPLIFIED GLASS FORMER | S186: PRT | T186: 100 | U186: 100 | V186: MTS | W186: N/A | X186: V1 | Y186: V2
B187: Caltech provided | C187: 2 | D187: 2 | E187: 2 | F187: 2 | G187: 2 | H187: 2 | I187: 2 | J187: 2 | K187: =(2*0.125*PI()*300+2)/12 -> 19.80162075 | L187: =K187 -> 19.80162075 | M187: =SUM(K187:L187) -> 39.6032415 | N187: FT | P187: NiCr | R187: NICHROME WIRE, 24 BNC [DIA .5 MM] | S187: PRT | T187: 0 | U187: 0 | V187: OTS | W187: N/A
C188: 2 | D188: 2 | E188: 2 | F188: 2 | G188: 2 | H188: 2 | I188: 2 | J188: 2 | K188: 1 | L188: 0 | M188: =SUM(K188:L188) -> 1 | N188: EA | P188: Macor | Q188: D1002543 | R188: RH ELEMENT CONNECTOR, SIMPLIFIED LEFT | S188: PRT | T188: 100 | U188: 90 | V188: MTS | W188: N/A | X188: N/A | Y188: V2
C189: 2 | D189: 2 | E189: 2 | F189: 2 | G189: 2 | H189: 2 | I189: 2 | J189: 2 | K189: 1 | L189: 0 | M189: 1 | N189: EA | P189: Macor | Q189: D1002544 | R189: RH ELEMENT CONNECTOR, SIMPLIFIED RIGHT | S189: PRT | T189: 100 | U189: 90 | V189: MTS | W189: N/A | X189: N/A | Y189: V2
B190: Caltech provides raw material | C190: 2 | D190: 2 | E190: 2 | F190: 2 | G190: 2 | H190: 2 | I190: 2 | J190: 2 | K190: 1 | L190: 1 | M190: 2 | N190: EA | P190: Altima KVS | Q190: D1002986 | R190: RH ELEMENT SPACER | S190: PRT | T190: 100 | U190: 100 | V190: MTS | W190: N/A | X190: N/A | Y190: V1 | Z190: V1
C191: 2 | D191: 2 | E191: 2 | F191: 2 | G191: 2 | H191: 2 | I191: 2 | J191: 2 | K191: 1 | L191: 1 | M191: =SUM(K191:L191) -> 2 | N191: EA | P191: Macor | Q191: D1003009 | R191: RH ELEMENT SPACER WHEEL | S191: PRT | T191: 100 | U191: 100 | V191: MTS | W191: N/A | X191: N/A | Y191: V1
B192: Caltech provided | C192: 2 | D192: 2 | E192: 2 | F192: 2 | G192: 2 | H192: 2 | I192: 2 | J192: 2 | K192: 1 | L192: 1 | M192: 2 | N192: EA | P192: Stainless Steel | Q192: T-402 | R192: SS Set Screw #4-40 x .125, vented | S192: HW | V192: OTS
C193: 2 | D193: 2 | E193: 2 | F193: 2 | G193: 2 | H193: 2 | I193: 2 | J193: 2 | K193: 2 | L193: 2 | M193: 4 | N193: EA | P193: Cu 110 Alloy | Q193: D1001849 | R193: UPPER COPPER PLATE | S193: PRT | T193: 100 | U193: 90 | V193: MTS | W193: N/A | X193: N/A | Y193: V1
C194: 2 | D194: 2 | E194: 2 | F194: 2 | G194: 2 | H194: 2 | I194: 2 | J194: 2 | K194: 2 | L194: 2 | M194: 4 | N194: EA | P194: Cu 110 Alloy | Q194: D1001850 | R194: LOWER COPPER PLATE | S194: PRT | T194: 100 | U194: 90 | V194: MTS | W194: N/A | X194: N/A | Y194: V2
B195: Caltech provided | C195: 2 | D195: 2 | E195: 2 | F195: 2 | G195: 2 | H195: 2 | I195: 2 | J195: 2 | K195: 2 | L195: 2 | M195: 4 | N195: EA | P195: Stainless Steel | Q195: C-210 | R195: SS SHCS-V #2-56 UNC 2A X .625 LONG | S195: HW | T195: 100 | U195: 0 | V195: OTS | W195: N/A | X195: N/A
C196: 2 | D196: 2 | E196: 2 | F196: 2 | G196: 2 | H196: 2 | I196: 2 | J196: 2 | K196: 2 | L196: 2 | M196: 4 | N196: EA | P196: Stainless Steel | Q196: N-256 | R196: SS HEX NUT #2-56 UNC 2B | S196: HW | T196: 100 | U196: 0 | V196: OTS | W196: N/A | X196: N/A
C197: 2 | D197: 2 | E197: 2 | F197: 2 | G197: 2 | H197: 2 | I197: 2 | J197: 2 | K197: 4 | L197: 2 | M197: 6 | N197: EA | P197: Stainless Steel | Q197: FA-404 | R197: SS FSHCS-V #4-40 UNC 2A X .25 LONG | S197: HW | T197: 100 | U197: 0 | V197: OTS | W197: N/A | X197: N/A
C198: 2 | D198: 2 | E198: 2 | F198: 2 | G198: 2 | H198: 2 | I198: 2 | J198: 2 | K198: 12 | L198: 6 | M198: 18 | N198: IN | P198: PFA coated Cu | Q198: CZ1105 | R198: PFA COATED 28 AWG Cu WIRE, 2x 6 IN LENGTH | S198: PRT | T198: 0 | U198: 0 | V198: OTS | W198: N/A | X198: N/A
C199: 3 | D199: 3 | E199: 3 | F199: 3 | G199: 3 | H199: 3 | I199: 3 | J199: 3 | K199: 2 | L199: 2 | M199: 4 | N199: EA | P199: Cu, Au-coated | Q199: PN 100170 | R199: ACCUGLASS PIN CONTACT 100170, MALE TYPE T-1, CRIMPED | S199: PRT | T199: 100 | U199: 100 | V199: OTS | W199: N/A | X199: N/A
A200: E1000291 | C200: 1 | D200: 1 | E200: 1 | F200: 1 | G200: 1 | H200: 1 | I200: 1 | J200: 1 | K200: 1 | L200: 0 | M200: 1 | N200: EA | O200: E1000295 | Q200: D1001895 | R200: aLIGO [TCS] LOWER SEGMENT RING HEATER ASSY | S200: ASSY | T200: 100 | U200: 90 | V200: MTS | W200: N/A | X200: N/A | Y200: V2
C201: 2 | D201: =$C201 -> 2 | E201: 2 | F201: 2 | G201: 2 | H201: 2 | I201: 2 | J201: 2 | K201: 1 | L201: 0 | M201: 1 | N201: EA | P201: Al, Au-coated | Q201: D1001680 | R201: ALIGO TCS UPPER MONOLITH RH SHIELD | S201: PRT | T201: 100 | U201: 90 | V201: MTS | W201: N/A | X201: N/A | Y201: V3 | AA201: =3000*15 -> 45000
C202: 2 | F202: 2 | K202: 1 | L202: 1 | M202: =SUM(K202:L202) -> 2 | N202: EA | P202: glass | Q202: D1002538 | R202: SIMPLIFIED GLASS FORMER | S202: PRT | T202: 100 | U202: 100 | V202: MTS | W202: N/A | X202: V1 | Y202: V2
B203: Caltech provided | C203: 2 | D203: 2 | E203: 2 | F203: 2 | G203: 2 | H203: 2 | I203: 2 | J203: 2 | K203: =(2*0.125*PI()*300+2)/12 -> 19.80162075 | L203: =K203 -> 19.80162075 | M203: =SUM(K203:L203) -> 39.6032415 | N203: FT | P203: NiCr | R203: NICHROME WIRE, 24 BNC [DIA .5 MM] | S203: PRT | T203: 0 | U203: 0 | V203: OTS | W203: N/A
C204: 2 | D204: 2 | E204: 2 | F204: 2 | G204: 2 | H204: 2 | I204: 2 | J204: 2 | K204: 1 | L204: 0 | M204: =SUM(K204:L204) -> 1 | N204: EA | P204: Macor | Q204: D1002543 | R204: RH ELEMENT CONNECTOR, SIMPLIFIED LEFT | S204: PRT | T204: 100 | U204: 90 | V204: MTS | W204: N/A | X204: N/A | Y204: V2
C205: 2 | D205: =$C205 -> 2 | E205: 2 | F205: 2 | G205: 2 | H205: 2 | I205: 2 | J205: 2 | K205: 1 | L205: 0 | M205: 1 | N205: EA | P205: Macor | Q205: D1002544 | R205: RH ELEMENT CONNECTOR, SIMPLIFIED RIGHT | S205: PRT | T205: 100 | U205: 90 | V205: MTS | W205: N/A | X205: N/A | Y205: V2
B206: Caltech provides raw material | C206: 2 | D206: 2 | E206: 2 | F206: 2 | G206: 2 | H206: 2 | I206: 2 | J206: 2 | K206: 1 | L206: 0 | M206: 1 | N206: EA | P206: Altima KVS | Q206: D1002986 | R206: RH ELEMENT SPACER | S206: PRT | T206: 100 | U206: 100 | V206: MTS | W206: N/A | X206: N/A | Y206: V1 | Z206: V1
C207: 2 | D207: 2 | E207: 2 | F207: 2 | G207: 2 | H207: 2 | I207: 2 | J207: 2 | K207: 1 | L207: 1 | M207: 2 | N207: EA | P207: Macor | Q207: D1003009 | R207: RH ELEMENT SPACER WHEEL | S207: PRT | T207: 100 | U207: 100 | V207: MTS | W207: N/A | X207: N/A | Y207: V1
B208: Caltech provided | C208: 2 | D208: =$C208 -> 2 | E208: 2 | F208: 2 | G208: 2 | H208: 2 | I208: 2 | J208: 2 | K208: 1 | L208: 1 | M208: 2 | N208: EA | P208: Stainless Steel | Q208: T-402 | R208: SS Set Screw #4-40 x .125, vented | S208: HW | V208: OTS
C209: 2 | D209: 2 | E209: 2 | F209: 2 | G209: 2 | H209: 2 | I209: 2 | J209: 2 | K209: 2 | L209: 2 | M209: 4 | N209: EA | P209: Cu 110 Alloy | Q209: D1001849 | R209: UPPER COPPER PLATE | S209: PRT | T209: 100 | U209: 90 | V209: MTS | W209: N/A | X209: N/A | Y209: V1
C210: 2 | D210: 2 | E210: 2 | F210: 2 | G210: 2 | H210: 2 | I210: 2 | J210: 2 | K210: 2 | L210: 2 | M210: 4 | N210: EA | P210: Cu 110 Alloy | Q210: D1001850 | R210: LOWER COPPER PLATE | S210: PRT | T210: 100 | U210: 90 | V210: MTS | W210: N/A | X210: N/A | Y210: V2
B211: Caltech provided | C211: 2 | D211: 2 | E211: 2 | F211: 2 | G211: 2 | H211: 2 | I211: 2 | J211: 2 | K211: 2 | L211: 2 | M211: 4 | N211: EA | P211: Stainless Steel | Q211: C-210 | R211: SS SHCS-V #2-56 UNC 2A X .625 LONG | S211: HW | T211: 100 | U211: 0 | V211: OTS | W211: N/A | X211: N/A
C212: 2 | D212: 2 | E212: 2 | F212: 2 | G212: 2 | H212: 2 | I212: 2 | J212: 2 | K212: 2 | L212: 2 | M212: 4 | N212: EA | P212: Stainless Steel | Q212: N-256 | R212: SS HEX NUT #2-56 UNC 2B | S212: HW | T212: 100 | U212: 0 | V212: OTS | W212: N/A | X212: N/A
C213: 2 | D213: 2 | E213: 2 | F213: 2 | G213: 2 | H213: 2 | I213: 2 | J213: 2 | K213: 4 | L213: 2 | M213: 6 | N213: EA | P213: Stainless Steel | Q213: FA-404 | R213: SS FSHCS-V #4-40 UNC 2A X .25 LONG | S213: HW | T213: 100 | U213: 0 | V213: OTS | W213: N/A | X213: N/A
C214: 2 | D214: 2 | E214: 2 | F214: 2 | G214: 2 | H214: 2 | I214: 2 | J214: 2 | K214: 12 | L214: 6 | M214: 18 | N214: IN | P214: PFA coated Cu | Q214: CZ1105 | R214: PFA COATED 28 AWG Cu WIRE, 2x 6 IN LENGTH | S214: PRT | T214: 0 | U214: 0 | V214: OTS | W214: N/A | X214: N/A
C215: 3 | D215: 3 | E215: 3 | F215: 3 | G215: 3 | H215: 3 | I215: 3 | J215: 3 | K215: 2 | L215: 2 | M215: 4 | N215: EA | P215: Cu, Au-coated | Q215: PN 100170 | R215: ACCUGLASS PIN CONTACT 100170, MALE TYPE T-1, CRIMPED | S215: PRT | T215: 100 | U215: 100 | V215: OTS | W215: N/A | X215: N/A
P216: Cu, Au-coated
